[Event "Titled Tuesday Blitz January 03 Early 2023"]
[White "Avazkhonov, Alikhon"]
[Black "Sailer, Mike"]
[WhiteFideId "14208504"]
[BlackFideId "2012901"]
[WhiteElo "1538"]
[BlackElo "2109"]
[Result "1-0"]
[Round "09"]
[TimeControl "180+2"]
[Date "2023.01.03"]
[WhiteClock "0:00:05"]
[BlackClock "0:00:30"]

1. d4 {[%clk 0:02:30]}  d5 {[%clk 0:02:56]} 2. c4 {[%clk 0:02:30]}  Bf5 {[%clk 0:02:55]} 3. Nc3 {[%clk 0:02:27]}  e6 {[%clk 0:02:56]} 4. Nf3 {[%clk 0:02:23]}  Nc6 {[%clk 0:02:57]} 5. a3 {[%clk 0:02:07]}  Nf6 {[%clk 0:02:57]} 6. Bg5 {[%clk 0:01:45]}  Be7 {[%clk 0:02:57]} 7. cxd5 {[%clk 0:01:44]}  exd5 {[%clk 0:02:57]} 8. e3 {[%clk 0:01:44]}  Ne4 {[%clk 0:02:58]} 9. Bxe7 {[%clk 0:01:42]}  Nxe7 {[%clk 0:02:58]} 10. Nxe4 {[%clk 0:01:36]}  Bxe4 {[%clk 0:02:55]} 11. Bd3 {[%clk 0:01:36]}  Bxd3 {[%clk 0:02:52]} 12. Qxd3 {[%clk 0:01:36]}  O-O {[%clk 0:02:52]} 13. O-O {[%clk 0:01:36]}  c6 {[%clk 0:02:51]} 14. b4 {[%clk 0:01:36]}  a6 {[%clk 0:02:49]} 15. Qc3 {[%clk 0:01:29]}  Nc8 {[%clk 0:02:48]} 16. Ne5 {[%clk 0:01:27]}  Nd6 {[%clk 0:02:48]} 17. a4 {[%clk 0:01:26]}  Rc8 {[%clk 0:02:44]} 18. Rab1 {[%clk 0:01:19]}  f6 {[%clk 0:02:43]} 19. Nd3 {[%clk 0:01:18]}  Nc4 {[%clk 0:02:43]} 20. Nc5 {[%clk 0:01:17]}  Qe7 {[%clk 0:02:33]} 21. Qd3 {[%clk 0:01:10]}  f5 {[%clk 0:02:25]} 22. b5 {[%clk 0:01:06]}  axb5 {[%clk 0:02:25]} 23. axb5 {[%clk 0:01:07]}  f4 {[%clk 0:02:22]} 24. bxc6 {[%clk 0:01:03]}  bxc6 {[%clk 0:02:20]} 25. Rb7 {[%clk 0:01:04]}  Qf6 {[%clk 0:02:04]} 26. Nd7 {[%clk 0:00:53]}  Qe7 {[%clk 0:01:47]} 27. Nxf8 {[%clk 0:00:32]}  Qxb7 {[%clk 0:01:46]} 28. Nxh7 {[%clk 0:00:32]}  Qe7 {[%clk 0:01:19]} 29. Qf5 {[%clk 0:00:31]}  fxe3 {[%clk 0:01:10]} 30. Qxc8+ {[%clk 0:00:24]}  Kxh7 {[%clk 0:01:10]} 31. Qh3+ {[%clk 0:00:24]}  Kg8 {[%clk 0:01:10]} 32. fxe3 {[%clk 0:00:25]}  Qxe3+ {[%clk 0:01:06]} 33. Qxe3 {[%clk 0:00:25]}  Nxe3 {[%clk 0:01:06]} 34. Rc1 {[%clk 0:00:26]}  Nf5 {[%clk 0:01:06]} 35. Rxc6 {[%clk 0:00:25]}  Nxd4 {[%clk 0:01:07]} 36. Rd6 {[%clk 0:00:25]}  Ne2+ {[%clk 0:01:01]} 37. Kf1 {[%clk 0:00:23]}  Nc3 {[%clk 0:00:58]} 38. Rc6 {[%clk 0:00:23]}  Ne4 {[%clk 0:00:57]} 39. Ke2 {[%clk 0:00:22]}  Kf7 {[%clk 0:00:52]} 40. Ke3 {[%clk 0:00:22]}  Nf6 {[%clk 0:00:51]} 41. h3 {[%clk 0:00:20]}  Kg6 {[%clk 0:00:48]} 42. Kf4 {[%clk 0:00:15]}  Kf7 {[%clk 0:00:43]} 43. g4 {[%clk 0:00:13]}  Ke7 {[%clk 0:00:38]} 44. Ke5 {[%clk 0:00:11]}  Kd7 {[%clk 0:00:36]} 45. Ra6 {[%clk 0:00:08]}  Ke7 {[%clk 0:00:35]} 46. Ra7+ {[%clk 0:00:07]}  Kf8 {[%clk 0:00:36]} 47. g5 {[%clk 0:00:07]}  Ne8 {[%clk 0:00:32]} 48. Kxd5 {[%clk 0:00:07]}  g6 {[%clk 0:00:32]} 49. Ke6 {[%clk 0:00:07]}  Kg8 {[%clk 0:00:30]} 50. Ra8 {[%clk 0:00:06]}  Kf8 {[%clk 0:00:30]} 51. h4 {[%clk 0:00:05]} 1-0


[Site "https://www.chess.com"]

[Event "Titled Tuesday Blitz January 03 Early 2023"]
[White "Fabris, Alberto"]
[Black "Andreev, Konstantin"]
[WhiteFideId "801348"]
[BlackFideId "24239305"]
[WhiteElo "2230"]
[BlackElo "2195"]
[Result "1-0"]
[Round "09"]
[TimeControl "180+2"]
[Date "2023.01.03"]
[WhiteClock "0:01:18"]
[BlackClock "0:00:13"]

1. e4 {[%clk 0:03:00]}  c5 {[%clk 0:02:45]} 2. Nf3 {[%clk 0:03:00]}  e6 {[%clk 0:02:43]} 3. d4 {[%clk 0:02:59]}  cxd4 {[%clk 0:02:44]} 4. Nxd4 {[%clk 0:02:59]}  Nc6 {[%clk 0:02:45]} 5. Nb5 {[%clk 0:02:57]}  Nf6 {[%clk 0:02:38]} 6. N1c3 {[%clk 0:02:52]}  d6 {[%clk 0:02:32]} 7. a4 {[%clk 0:02:51]}  Be7 {[%clk 0:02:29]} 8. Be2 {[%clk 0:02:50]}  O-O {[%clk 0:02:28]} 9. O-O {[%clk 0:02:50]}  a6 {[%clk 0:02:24]} 10. Na3 {[%clk 0:02:50]}  Qc7 {[%clk 0:02:23]} 11. Be3 {[%clk 0:02:46]}  Nd7 {[%clk 0:01:57]} 12. Kh1 {[%clk 0:02:40]}  Nf6 {[%clk 0:01:48]} 13. f4 {[%clk 0:02:37]}  e5 {[%clk 0:01:48]} 14. f5 {[%clk 0:02:34]}  Rd8 {[%clk 0:01:44]} 15. Nc4 {[%clk 0:02:23]}  Nd4 {[%clk 0:01:18]} 16. Bxd4 {[%clk 0:02:17]}  exd4 {[%clk 0:01:19]} 17. Qxd4 {[%clk 0:02:17]}  d5 {[%clk 0:01:20]} 18. Nb6 {[%clk 0:02:10]}  Rb8 {[%clk 0:01:04]} 19. e5 {[%clk 0:02:07]}  Bc5 {[%clk 0:01:02]} 20. Nbxd5 {[%clk 0:01:56]}  Nxd5 {[%clk 0:00:51]} 21. Nxd5 {[%clk 0:01:54]}  Qc6 {[%clk 0:00:42]} 22. Qh4 {[%clk 0:01:41]}  Rxd5 {[%clk 0:00:32]} 23. Bf3 {[%clk 0:01:38]}  Qd7 {[%clk 0:00:20]} 24. Bxd5 {[%clk 0:01:36]}  Qxd5 {[%clk 0:00:21]} 25. Rad1 {[%clk 0:01:33]}  Qc6 {[%clk 0:00:17]} 26. Rd8+ {[%clk 0:01:27]}  Bf8 {[%clk 0:00:16]} 27. f6 {[%clk 0:01:24]}  Qc7 {[%clk 0:00:12]} 28. fxg7 {[%clk 0:01:20]}  Kxg7 {[%clk 0:00:13]} 29. Qg5+ {[%clk 0:01:18]} 1-0


[Site "https://www.chess.com"]

[Event "Titled Tuesday Blitz January 03 Early 2023"]
[White "Cardozo Munar, Carlos Eduardo"]
[Black "Zherebtsova, Alexandra"]
[WhiteFideId "4409477"]
[BlackFideId "24129518"]
[WhiteElo "2043"]
[BlackElo "2155"]
[Result "0-1"]
[Round "09"]
[TimeControl "180+2"]
[Date "2023.01.03"]
[WhiteClock "0:00:20"]
[BlackClock "0:00:13"]

1. d4 {[%clk 0:02:59]}  d5 {[%clk 0:02:57]} 2. c3 {[%clk 0:02:59]}  Bf5 {[%clk 0:02:56]} 3. Bg5 {[%clk 0:03:00]}  Nf6 {[%clk 0:02:54]} 4. Nd2 {[%clk 0:03:00]}  c6 {[%clk 0:02:53]} 5. Ngf3 {[%clk 0:02:58]}  h6 {[%clk 0:02:52]} 6. Bxf6 {[%clk 0:02:58]}  exf6 {[%clk 0:02:53]} 7. g3 {[%clk 0:02:58]}  Bd6 {[%clk 0:02:51]} 8. Bg2 {[%clk 0:02:59]}  Nd7 {[%clk 0:02:51]} 9. O-O {[%clk 0:03:00]}  O-O {[%clk 0:02:51]} 10. Re1 {[%clk 0:03:01]}  Re8 {[%clk 0:02:49]} 11. a4 {[%clk 0:03:02]}  a5 {[%clk 0:02:47]} 12. e3 {[%clk 0:03:02]}  Qb6 {[%clk 0:02:43]} 13. b3 {[%clk 0:02:41]}  Bf8 {[%clk 0:02:35]} 14. c4 {[%clk 0:02:40]}  Rad8 {[%clk 0:02:06]} 15. Nh4 {[%clk 0:02:38]}  Be6 {[%clk 0:02:04]} 16. e4 {[%clk 0:02:37]}  dxe4 {[%clk 0:01:58]} 17. Nxe4 {[%clk 0:02:36]}  f5 {[%clk 0:01:56]} 18. Nc3 {[%clk 0:02:31]}  Bb4 {[%clk 0:01:52]} 19. Rc1 {[%clk 0:02:29]}  Nf6 {[%clk 0:01:48]} 20. Nf3 {[%clk 0:02:26]}  Ne4 {[%clk 0:01:14]} 21. Nxe4 {[%clk 0:02:02]}  Bxe1 {[%clk 0:01:13]} 22. Nc5 {[%clk 0:02:03]}  Bb4 {[%clk 0:01:10]} 23. Nxe6 {[%clk 0:01:58]}  fxe6 {[%clk 0:01:06]} 24. Qe2 {[%clk 0:01:58]}  c5 {[%clk 0:01:01]} 25. dxc5 {[%clk 0:01:55]}  Bxc5 {[%clk 0:01:01]} 26. Rc3 {[%clk 0:01:46]}  Bb4 {[%clk 0:00:59]} 27. Rd3 {[%clk 0:01:45]}  Rxd3 {[%clk 0:00:53]} 28. Qxd3 {[%clk 0:01:46]}  Qd8 {[%clk 0:00:50]} 29. Qe2 {[%clk 0:01:45]}  e5 {[%clk 0:00:41]} 30. Nxe5 {[%clk 0:01:40]}  Qd4 {[%clk 0:00:34]} 31. Nf3 {[%clk 0:01:28]}  Rxe2 {[%clk 0:00:24]} 32. Nxd4 {[%clk 0:01:28]}  Re1+ {[%clk 0:00:24]} 33. Bf1 {[%clk 0:01:28]}  Rb1 {[%clk 0:00:24]} 34. c5 {[%clk 0:00:58]}  Bxc5 {[%clk 0:00:22]} 35. Nxf5 {[%clk 0:00:57]}  Kf8 {[%clk 0:00:18]} 36. Kg2 {[%clk 0:00:50]}  Rxb3 {[%clk 0:00:17]} 37. Nh4 {[%clk 0:00:51]}  Rb2 {[%clk 0:00:17]} 38. Ng6+ {[%clk 0:00:50]}  Ke8 {[%clk 0:00:16]} 39. Bb5+ {[%clk 0:00:49]}  Kd8 {[%clk 0:00:16]} 40. Nf4 {[%clk 0:00:44]}  Rxf2+ {[%clk 0:00:16]} 41. Kh3 {[%clk 0:00:44]}  Rc2 {[%clk 0:00:15]} 42. Ne6+ {[%clk 0:00:44]}  Ke7 {[%clk 0:00:11]} 43. Nxg7 {[%clk 0:00:45]}  Bg1 {[%clk 0:00:11]} 44. Kg4 {[%clk 0:00:39]}  Rxh2 {[%clk 0:00:10]} 45. Nf5+ {[%clk 0:00:38]}  Kf6 {[%clk 0:00:10]} 46. Nd6 {[%clk 0:00:37]}  b6 {[%clk 0:00:09]} 47. Ne4+ {[%clk 0:00:34]}  Ke5 {[%clk 0:00:10]} 48. Kf3 {[%clk 0:00:34]}  Bc5 {[%clk 0:00:09]} 49. Bc6 {[%clk 0:00:27]}  Kd4 {[%clk 0:00:10]} 50. Nf6 {[%clk 0:00:26]}  Kc3 {[%clk 0:00:09]} 51. Ng4 {[%clk 0:00:25]}  Rh5 {[%clk 0:00:09]} 52. Be8 {[%clk 0:00:20]}  Rh1 {[%clk 0:00:07]} 53. Kg2 {[%clk 0:00:20]}  Rg1+ {[%clk 0:00:08]} 54. Kh2 {[%clk 0:00:19]}  Re1 {[%clk 0:00:08]} 55. Bb5 {[%clk 0:00:18]}  Re6 {[%clk 0:00:07]} 56. Kh3 {[%clk 0:00:18]}  Rd6 {[%clk 0:00:07]} 57. Nf2 {[%clk 0:00:17]}  Bxf2 {[%clk 0:00:06]} 58. Kg4 {[%clk 0:00:17]}  Bc5 {[%clk 0:00:06]} 59. Kh5 {[%clk 0:00:18]}  Be3 {[%clk 0:00:06]} 60. g4 {[%clk 0:00:18]}  Rd5+ {[%clk 0:00:07]} 61. Kh4 {[%clk 0:00:19]}  Rxb5 {[%clk 0:00:07]} 62. axb5 {[%clk 0:00:19]}  a4 {[%clk 0:00:07]} 63. Kh5 {[%clk 0:00:19]}  a3 {[%clk 0:00:08]} 64. Kg6 {[%clk 0:00:19]}  a2 {[%clk 0:00:08]} 65. Kh5 {[%clk 0:00:20]}  a1=Q {[%clk 0:00:08]} 66. g5 {[%clk 0:00:21]}  Bxg5 {[%clk 0:00:08]} 67. Kg6 {[%clk 0:00:22]}  Qa5 {[%clk 0:00:08]} 68. Kh5 {[%clk 0:00:22]}  Qxb5 {[%clk 0:00:09]} 69. Kg6 {[%clk 0:00:23]}  Qc5 {[%clk 0:00:10]} 70. Kh5 {[%clk 0:00:23]}  b5 {[%clk 0:00:11]} 71. Kg6 {[%clk 0:00:17]}  b4 {[%clk 0:00:12]} 72. Kh5 {[%clk 0:00:18]}  b3 {[%clk 0:00:12]} 73. Kg6 {[%clk 0:00:18]}  b2 {[%clk 0:00:13]} 74. Kh5 {[%clk 0:00:19]}  b1=Q {[%clk 0:00:13]} 75. Kg4 {[%clk 0:00:19]}  Qd4+ {[%clk 0:00:13]} 76. Kh5 {[%clk 0:00:19]}  Qbd1+ {[%clk 0:00:13]} 77. Kg6 {[%clk 0:00:19]}  Qd6+ {[%clk 0:00:13]} 78. Kf5 {[%clk 0:00:19]}  Q1d5+ {[%clk 0:00:13]} 79. Kg4 {[%clk 0:00:20]}  Q6e6+ {[%clk 0:00:14]} 80. Kh5 {[%clk 0:00:20]}  Qf3# {[%clk 0:00:13]} 0-1


[Site "https://www.chess.com"]

[Event "Titled Tuesday Blitz January 03 Early 2023"]
[White "Wieczorek, Zbigniew"]
[Black "Kalajzic, Ivan"]
[WhiteFideId "1102001"]
[BlackFideId "14506378"]
[WhiteElo "2150"]
[BlackElo "2062"]
[Result "1-0"]
[Round "09"]
[TimeControl "180+2"]
[Date "2023.01.03"]
[WhiteClock "0:00:22"]
[BlackClock "0:00:04"]

1. Nf3 {[%clk 0:03:00]}  Nc6 {[%clk 0:02:53]} 2. d4 {[%clk 0:02:58]}  d5 {[%clk 0:02:53]} 3. g3 {[%clk 0:02:56]}  Bg4 {[%clk 0:02:53]} 4. Bg2 {[%clk 0:02:56]}  Qd7 {[%clk 0:02:53]} 5. c3 {[%clk 0:02:53]}  Bh3 {[%clk 0:02:53]} 6. Bxh3 {[%clk 0:02:52]}  Qxh3 {[%clk 0:02:52]} 7. Qa4 {[%clk 0:02:47]}  f6 {[%clk 0:02:50]} 8. b4 {[%clk 0:02:39]}  Qd7 {[%clk 0:02:47]} 9. b5 {[%clk 0:02:38]}  Nb8 {[%clk 0:02:44]} 10. Qb3 {[%clk 0:02:35]}  e6 {[%clk 0:02:38]} 11. a4 {[%clk 0:02:34]}  Bd6 {[%clk 0:02:38]} 12. Ba3 {[%clk 0:02:32]}  Ne7 {[%clk 0:02:37]} 13. Bxd6 {[%clk 0:02:32]}  Qxd6 {[%clk 0:02:35]} 14. Nbd2 {[%clk 0:02:32]}  O-O {[%clk 0:02:35]} 15. c4 {[%clk 0:02:30]}  c5 {[%clk 0:02:16]} 16. cxd5 {[%clk 0:02:18]}  exd5 {[%clk 0:02:07]} 17. Ne4 {[%clk 0:02:11]}  Qd8 {[%clk 0:01:55]} 18. Nxc5 {[%clk 0:02:11]}  Re8 {[%clk 0:01:49]} 19. Nxb7 {[%clk 0:02:06]}  Qd7 {[%clk 0:01:34]} 20. Nc5 {[%clk 0:02:02]}  Qf5 {[%clk 0:01:28]} 21. O-O {[%clk 0:01:56]}  Nd7 {[%clk 0:01:24]} 22. Rac1 {[%clk 0:01:30]}  Nb6 {[%clk 0:01:13]} 23. e4 {[%clk 0:01:18]}  Qh3 {[%clk 0:01:02]} 24. a5 {[%clk 0:01:05]}  Nd7 {[%clk 0:00:56]} 25. exd5 {[%clk 0:00:53]}  Ng6 {[%clk 0:00:47]} 26. Ne6 {[%clk 0:00:31]}  Ndf8 {[%clk 0:00:38]} 27. Rfe1 {[%clk 0:00:29]}  Rab8 {[%clk 0:00:23]} 28. Rc7 {[%clk 0:00:27]}  Nxe6 {[%clk 0:00:23]} 29. dxe6 {[%clk 0:00:26]}  Re7 {[%clk 0:00:10]} 30. Rxe7 {[%clk 0:00:23]}  Nxe7 {[%clk 0:00:10]} 31. d5 {[%clk 0:00:22]}  Rd8 {[%clk 0:00:05]} 32. b6 {[%clk 0:00:21]}  axb6 {[%clk 0:00:04]} 33. axb6 {[%clk 0:00:22]} 1-0


[Site "https://www.chess.com"]

[Event "Titled Tuesday Blitz January 03 Early 2023"]
[White "Gonzalez, Francisco Silva"]
[Black "Liu, Kelsey"]
[WhiteFideId "1512285"]
[BlackFideId "30944481"]
[WhiteElo "2021"]
[BlackElo "2065"]
[Result "0-1"]
[Round "09"]
[TimeControl "180+2"]
[Date "2023.01.03"]
[WhiteClock "0:01:33"]
[BlackClock "0:00:17"]

1. d4 {[%clk 0:03:00]}  Nf6 {[%clk 0:02:54]} 2. c4 {[%clk 0:02:59]}  e6 {[%clk 0:02:53]} 3. Nc3 {[%clk 0:02:59]}  Bb4 {[%clk 0:02:52]} 4. a3 {[%clk 0:02:59]}  Bxc3+ {[%clk 0:02:52]} 5. bxc3 {[%clk 0:03:00]}  O-O {[%clk 0:02:42]} 6. e3 {[%clk 0:03:00]}  Nc6 {[%clk 0:02:41]} 7. Bd3 {[%clk 0:03:00]}  e5 {[%clk 0:02:40]} 8. Ne2 {[%clk 0:02:55]}  e4 {[%clk 0:02:37]} 9. Bc2 {[%clk 0:02:54]}  b6 {[%clk 0:02:37]} 10. f3 {[%clk 0:02:53]}  Ba6 {[%clk 0:02:02]} 11. fxe4 {[%clk 0:02:51]}  Bxc4 {[%clk 0:01:58]} 12. Ng3 {[%clk 0:02:51]}  Re8 {[%clk 0:01:54]} 13. e5 {[%clk 0:02:50]}  Nd5 {[%clk 0:01:50]} 14. Qf3 {[%clk 0:02:45]}  d6 {[%clk 0:01:41]} 15. e4 {[%clk 0:02:39]}  dxe5 {[%clk 0:01:12]} 16. exd5 {[%clk 0:02:35]}  exd4+ {[%clk 0:01:12]} 17. Kd1 {[%clk 0:02:33]}  Bxd5 {[%clk 0:01:10]} 18. Qd3 {[%clk 0:02:29]}  Qh4 {[%clk 0:00:55]} 19. Nf5 {[%clk 0:02:11]}  Qh5+ {[%clk 0:00:46]} 20. Kd2 {[%clk 0:02:11]}  Be4 {[%clk 0:00:42]} 21. Qh3 {[%clk 0:02:02]}  Qxh3 {[%clk 0:00:40]} 22. Bxe4 {[%clk 0:01:57]}  Qg4 {[%clk 0:00:34]} 23. Nh6+ {[%clk 0:01:51]}  gxh6 {[%clk 0:00:33]} 24. Bxc6 {[%clk 0:01:51]}  dxc3+ {[%clk 0:00:32]} 25. Kxc3 {[%clk 0:01:49]}  Rad8 {[%clk 0:00:23]} 26. Bxh6 {[%clk 0:01:46]}  Re6 {[%clk 0:00:22]} 27. Bf3 {[%clk 0:01:43]}  Qd4+ {[%clk 0:00:22]} 28. Kb3 {[%clk 0:01:39]}  Qd3+ {[%clk 0:00:22]} 29. Kb2 {[%clk 0:01:38]}  Rxh6 {[%clk 0:00:22]} 30. Rad1 {[%clk 0:01:38]}  Qb5+ {[%clk 0:00:18]} 31. Kc3 {[%clk 0:01:37]}  Rxd1 {[%clk 0:00:17]} 32. Rxd1 {[%clk 0:01:36]}  Qc5+ {[%clk 0:00:18]} 33. Kb3 {[%clk 0:01:35]}  Rd6 {[%clk 0:00:18]} 34. Re1 {[%clk 0:01:35]}  Rd3+ {[%clk 0:00:17]} 35. Kb2 {[%clk 0:01:33]}  Qc3+ {[%clk 0:00:18]} 36. Ka2 {[%clk 0:01:33]}  Rd2+ {[%clk 0:00:17]} 0-1


[Site "https://www.chess.com"]

[Event "Titled Tuesday Blitz January 03 Early 2023"]
[White "Sreyas Payyappat"]
[Black "Thiel, Thomas"]
[WhiteFideId "46674969"]
[BlackFideId "4615964"]
[WhiteElo "2076"]
[BlackElo "2234"]
[Result "1-0"]
[Round "09"]
[TimeControl "180+2"]
[Date "2023.01.03"]
[WhiteClock "0:01:52"]
[BlackClock "0:00:04"]

1. e4 {[%clk 0:03:00]}  d5 {[%clk 0:02:59]} 2. exd5 {[%clk 0:03:01]}  Nf6 {[%clk 0:02:58]} 3. d4 {[%clk 0:03:01]}  Nxd5 {[%clk 0:02:57]} 4. c4 {[%clk 0:03:00]}  Nb6 {[%clk 0:02:55]} 5. Nf3 {[%clk 0:03:01]}  g6 {[%clk 0:02:54]} 6. Be3 {[%clk 0:03:00]}  Bg7 {[%clk 0:02:54]} 7. Nc3 {[%clk 0:03:01]}  O-O {[%clk 0:02:52]} 8. Be2 {[%clk 0:03:01]}  Bg4 {[%clk 0:02:51]} 9. O-O {[%clk 0:03:01]}  Nc6 {[%clk 0:02:48]} 10. d5 {[%clk 0:02:58]}  Bxf3 {[%clk 0:02:46]} 11. Bxf3 {[%clk 0:02:58]}  Ne5 {[%clk 0:02:46]} 12. Bxb6 {[%clk 0:02:57]}  Nxf3+ {[%clk 0:02:39]} 13. Qxf3 {[%clk 0:02:55]}  axb6 {[%clk 0:02:39]} 14. a3 {[%clk 0:02:54]}  Qd7 {[%clk 0:02:32]} 15. Rad1 {[%clk 0:02:51]}  Rfe8 {[%clk 0:02:31]} 16. Rfe1 {[%clk 0:02:49]}  Rac8 {[%clk 0:02:27]} 17. Qd3 {[%clk 0:02:45]}  Qg4 {[%clk 0:02:19]} 18. f3 {[%clk 0:02:42]}  Qh5 {[%clk 0:02:16]} 19. Re2 {[%clk 0:02:38]}  c6 {[%clk 0:02:12]} 20. Ne4 {[%clk 0:02:36]}  Rcd8 {[%clk 0:01:59]} 21. Ng3 {[%clk 0:02:30]}  Qh4 {[%clk 0:01:56]} 22. Re4 {[%clk 0:02:26]}  Qf6 {[%clk 0:01:52]} 23. Qe2 {[%clk 0:02:22]}  cxd5 {[%clk 0:01:31]} 24. cxd5 {[%clk 0:02:23]}  Bf8 {[%clk 0:01:10]} 25. Qe3 {[%clk 0:02:18]}  e6 {[%clk 0:01:03]} 26. b4 {[%clk 0:02:09]}  b5 {[%clk 0:00:54]} 27. Qe2 {[%clk 0:02:05]}  Ra8 {[%clk 0:00:48]} 28. Re3 {[%clk 0:02:03]}  Red8 {[%clk 0:00:31]} 29. Ne4 {[%clk 0:02:00]}  Qf4 {[%clk 0:00:21]} 30. d6 {[%clk 0:01:58]}  Bg7 {[%clk 0:00:09]} 31. g3 {[%clk 0:01:55]}  Qh6 {[%clk 0:00:07]} 32. Red3 {[%clk 0:01:53]}  Rd7 {[%clk 0:00:04]} 33. Nc5 {[%clk 0:01:52]} 1-0


[Site "https://www.chess.com"]

[Event "Titled Tuesday Blitz January 03 Early 2023"]
[White "Lauridsen, Jesper Morch"]
[Black "Dwilewicz, Katarzyna"]
[WhiteFideId "1401890"]
[BlackFideId "1148486"]
[WhiteElo "2309"]
[BlackElo "2115"]
[Result "0-1"]
[Round "09"]
[TimeControl "180+2"]
[Date "2023.01.03"]
[WhiteClock "0:00:10"]
[BlackClock "0:00:46"]

1. e4 {[%clk 0:03:00]}  e5 {[%clk 0:02:59]} 2. Nf3 {[%clk 0:02:58]}  Nc6 {[%clk 0:02:59]} 3. Bb5 {[%clk 0:02:58]}  a6 {[%clk 0:02:58]} 4. Bxc6 {[%clk 0:02:58]}  dxc6 {[%clk 0:02:57]} 5. O-O {[%clk 0:02:59]}  f6 {[%clk 0:02:43]} 6. d4 {[%clk 0:02:57]}  exd4 {[%clk 0:02:36]} 7. Nxd4 {[%clk 0:02:57]}  c5 {[%clk 0:02:36]} 8. Ne2 {[%clk 0:02:57]}  Qxd1 {[%clk 0:02:27]} 9. Rxd1 {[%clk 0:02:56]}  Bd7 {[%clk 0:02:26]} 10. Nbc3 {[%clk 0:02:55]}  O-O-O {[%clk 0:02:24]} 11. Nd5 {[%clk 0:02:51]}  Ne7 {[%clk 0:02:20]} 12. Nec3 {[%clk 0:02:32]}  Nxd5 {[%clk 0:02:08]} 13. Nxd5 {[%clk 0:02:31]}  Be6 {[%clk 0:02:07]} 14. Bf4 {[%clk 0:01:50]}  Bd6 {[%clk 0:02:07]} 15. Bxd6 {[%clk 0:01:38]}  Rxd6 {[%clk 0:02:05]} 16. c4 {[%clk 0:01:30]}  Rhd8 {[%clk 0:02:00]} 17. b3 {[%clk 0:01:18]}  c6 {[%clk 0:01:55]} 18. Nb6+ {[%clk 0:01:11]}  Kc7 {[%clk 0:01:55]} 19. Rxd6 {[%clk 0:01:10]}  Rxd6 {[%clk 0:01:54]} 20. Na4 {[%clk 0:01:06]}  b6 {[%clk 0:01:52]} 21. Kf1 {[%clk 0:00:44]}  Rd2 {[%clk 0:01:47]} 22. Nc3 {[%clk 0:00:38]}  g5 {[%clk 0:01:46]} 23. Rd1 {[%clk 0:00:35]}  Rc2 {[%clk 0:01:39]} 24. Rd3 {[%clk 0:00:35]}  h5 {[%clk 0:01:33]} 25. g3 {[%clk 0:00:28]}  Bh3+ {[%clk 0:01:29]} 26. Ke1 {[%clk 0:00:28]}  Bg4 {[%clk 0:01:25]} 27. a4 {[%clk 0:00:21]}  Rc1+ {[%clk 0:01:22]} 28. Kd2 {[%clk 0:00:19]}  Rh1 {[%clk 0:01:22]} 29. h4 {[%clk 0:00:15]}  gxh4 {[%clk 0:01:22]} 30. gxh4 {[%clk 0:00:15]}  Rxh4 {[%clk 0:01:22]} 31. f3 {[%clk 0:00:14]}  Rh2+ {[%clk 0:01:22]} 32. Ke3 {[%clk 0:00:14]}  Be6 {[%clk 0:01:22]} 33. Ne2 {[%clk 0:00:14]}  h4 {[%clk 0:01:16]} 34. Nf4 {[%clk 0:00:14]}  Bd7 {[%clk 0:01:12]} 35. Rd1 {[%clk 0:00:14]}  Rb2 {[%clk 0:01:08]} 36. Rd3 {[%clk 0:00:13]}  h3 {[%clk 0:01:07]} 37. Ne2 {[%clk 0:00:11]}  h2 {[%clk 0:01:05]} 38. Rd1 {[%clk 0:00:10]}  Rxb3+ {[%clk 0:01:04]} 39. Kf4 {[%clk 0:00:11]}  Rb2 {[%clk 0:01:03]} 40. Ng3 {[%clk 0:00:11]}  Rg2 {[%clk 0:01:01]} 41. Rh1 {[%clk 0:00:09]}  b5 {[%clk 0:01:00]} 42. cxb5 {[%clk 0:00:09]}  cxb5 {[%clk 0:01:01]} 43. axb5 {[%clk 0:00:09]}  axb5 {[%clk 0:01:01]} 44. Nh5 {[%clk 0:00:10]}  b4 {[%clk 0:00:53]} 45. Nxf6 {[%clk 0:00:10]}  b3 {[%clk 0:00:54]} 46. Nd5+ {[%clk 0:00:10]}  Kd6 {[%clk 0:00:54]} 47. Ne3 {[%clk 0:00:10]}  Re2 {[%clk 0:00:51]} 48. Nc4+ {[%clk 0:00:10]}  Kc7 {[%clk 0:00:50]} 49. Kg3 {[%clk 0:00:10]}  b2 {[%clk 0:00:48]} 50. e5 {[%clk 0:00:09]}  Be6 {[%clk 0:00:46]} 51. Nxb2 {[%clk 0:00:07]}  Rxb2 {[%clk 0:00:45]} 52. Rxh2 {[%clk 0:00:07]}  Rxh2 {[%clk 0:00:46]} 53. Kxh2 {[%clk 0:00:08]}  Kc6 {[%clk 0:00:46]} 54. Kg3 {[%clk 0:00:08]}  Kd5 {[%clk 0:00:46]} 55. Kf4 {[%clk 0:00:09]}  c4 {[%clk 0:00:46]} 56. Ke3 {[%clk 0:00:09]}  Kxe5 {[%clk 0:00:46]} 57. f4+ {[%clk 0:00:10]}  Kf5 {[%clk 0:00:46]} 58. Kd4 {[%clk 0:00:10]}  Kxf4 {[%clk 0:00:46]} 0-1


[Site "https://www.chess.com"]

[Event "Titled Tuesday Blitz January 03 Early 2023"]
[White "Qashashvili, Alexandre"]
[Black "Ivanova, Karina"]
[WhiteFideId "13600842"]
[BlackFideId "24139750"]
[WhiteElo "2505"]
[BlackElo "2085"]
[Result "1-0"]
[Round "09"]
[TimeControl "180+2"]
[Date "2023.01.03"]
[WhiteClock "0:02:03"]
[BlackClock "0:01:53"]

1. e4 {[%clk 0:02:42]}  c6 {[%clk 0:02:52]} 2. d4 {[%clk 0:02:40]}  d5 {[%clk 0:02:52]} 3. Nc3 {[%clk 0:02:39]}  dxe4 {[%clk 0:02:51]} 4. Nxe4 {[%clk 0:02:38]}  Bf5 {[%clk 0:02:50]} 5. Ng3 {[%clk 0:02:38]}  Bg6 {[%clk 0:02:50]} 6. Nf3 {[%clk 0:02:39]}  Nd7 {[%clk 0:02:49]} 7. Bd3 {[%clk 0:02:39]}  Bxd3 {[%clk 0:02:48]} 8. Qxd3 {[%clk 0:02:40]}  e6 {[%clk 0:02:47]} 9. O-O {[%clk 0:02:39]}  Ngf6 {[%clk 0:02:34]} 10. c3 {[%clk 0:02:38]}  Bd6 {[%clk 0:02:31]} 11. Ne4 {[%clk 0:02:35]}  Nxe4 {[%clk 0:02:30]} 12. Qxe4 {[%clk 0:02:36]}  Nf6 {[%clk 0:02:30]} 13. Qh4 {[%clk 0:02:35]}  Qe7 {[%clk 0:02:27]} 14. Bf4 {[%clk 0:02:32]}  Bxf4 {[%clk 0:02:24]} 15. Qxf4 {[%clk 0:02:32]}  O-O {[%clk 0:02:23]} 16. h3 {[%clk 0:02:27]}  a5 {[%clk 0:02:22]} 17. a3 {[%clk 0:02:26]}  a4 {[%clk 0:02:21]} 18. Rfe1 {[%clk 0:02:23]}  b5 {[%clk 0:02:14]} 19. Ne5 {[%clk 0:02:22]}  Rac8 {[%clk 0:02:10]} 20. Ng4 {[%clk 0:02:20]}  Nxg4 {[%clk 0:02:09]} 21. Qxg4 {[%clk 0:02:21]}  Rfd8 {[%clk 0:02:06]} 22. Rad1 {[%clk 0:02:18]}  Rd5 {[%clk 0:02:04]} 23. Re5 {[%clk 0:02:16]}  Rcd8 {[%clk 0:02:01]} 24. Rde1 {[%clk 0:02:15]}  Rxe5 {[%clk 0:02:00]} 25. Rxe5 {[%clk 0:02:16]}  Rd5 {[%clk 0:02:00]} 26. Qf4 {[%clk 0:02:12]}  Qd6 {[%clk 0:01:53]} 27. Rxd5 {[%clk 0:02:03]} 1-0


[Site "https://www.chess.com"]